[Event "ESP-ch Rapid 2018"]
[Site "Linares"]
[Date "2018.08.19"]
[Round "5"]
[White "Riquelme Valero, Manuel Damian"]
[Black "Ordonez Torres, Jesus"]
[Result "1-0"]
[ECO "E71"]
[WhiteElo "2150"]
[BlackElo "1989"]
[Annotator "NA"]
[PlyCount "65"]
[EventDate "2018.08.19"]
[EventType "team-tourn"]
[EventCountry "ESP"]
[SourceTitle "playchess.com"]
[Source "ChessBase"]
[SourceQuality "1"]
[TimeControl "900+5"]

1. d4 {[%emt 0:00:00]} Nf6 {[%emt 0:00:00]} 2. c4 {[%emt 0:00:00]} g6 {[%emt 0:00:00]} 3. Nc3 {[%emt 0:00:00]} Bg7 {[%emt 0:00:00]} 4. e4 {[%emt 0:00:01]} d6 {[%emt 0:00:00]} 5. h3 {[%emt 0:00:01]} O-O {[%emt 0:00:03]} 6. Bg5 {[%emt 0:00:02]} c5 {[%emt 0:00:07]} 7. d5 {[%emt 0:00:02]} e6 {[%emt 0:00:05]} 8. Bd3 {[%emt 0:00:02]} exd5 {[%emt 0:00:06]} 9. exd5 {[%emt 0:00:02]} Re8+ {[%emt 0:00:06]} 10. Nge2 {[%emt 0:00:07]} Nbd7 {[%emt 0:00:23]} 11. f4 {[%emt 0:00:01]} a6 {[%emt 0:01:09]} 12. a4 {[%emt 0:00:02]} Qe7 {[%emt 0:00:59]} 13. O-O {[%emt 0:00:41]} Qe3+ {[%emt 0:00:27]} 14. Kh1 {[%emt 0:00:52]} Qe7 {[%emt 0:01:36]} 15. Qd2 {[%emt 0:01:22]} Qf8 {[%emt 0:00:05]} 16. Rae1 {[%emt 0:00:08]} h6 {[%emt 0:01:00]} 17. Bh4 {[%emt 0:00:02]} Nh7 {[%emt 0:00:59]} 18. g4 {[%emt 0:02:00]} Ndf6 {[%emt 0:01:00]} 19. f5 {[%emt 0:00:26]} g5 {[%emt 0:00:10]} 20. Bg3 {[%emt 0:00:25]} Nd7 {[%emt 0:00:08]} 21. Ng1 {[%emt 0:00:14]} Be5 {[%emt 0:00:33]} 22. Bxe5 {[%emt 0:00:19]} Nxe5 {[%emt 0:00:13]} 23. Nf3 {[%emt 0:00:04]} f6 {[%emt 0:00:22]} 24. a5 {[%emt 0:00:05]} Bd7 {[%emt 0:00:26]} 25. Nxe5 {[%emt 0:00:16]} Rxe5 {[%emt 0:00:17]} 26. Rxe5 {[%emt 0:00:03]} fxe5 {[%emt 0:00:01]} 27. f6 {[%emt 0:00:12]} Nxf6 {[%emt 0:01:29]} 28. Ne4 {[%emt 0:00:19]} Nxe4 {[%emt 0:00:15]} 29. Rxf8+ {[%emt 0:00:02]} Rxf8 {[%emt 0:00:02]} 30. Bxe4 Rf4 {[%emt 0:00:10]} 31. Qd3 {[%emt 0:00:10]} Kg7 {[%emt 0:00:07]} 32. Qb3 {[%emt 0:00:47]} Rf7 {[%emt 0:00:50]} 33. Qb6 {[%emt 0:00:05]} 1-0

[Event "ESP-ch Rapid 2018"]
[Site "Linares"]
[Date "2018.08.19"]
[Round "5"]
[White "Guadamuro Torrente, Anabel"]
[Black "Pallardo Lozoya, Jose Vicente"]
[Result "0-1"]
[ECO "B13"]
[WhiteElo "2145"]
[BlackElo "2382"]
[Annotator "NA"]
[PlyCount "86"]
[EventDate "2018.08.19"]
[EventType "team-tourn"]
[EventCountry "ESP"]
[SourceTitle "playchess.com"]
[Source "ChessBase"]
[SourceQuality "1"]
[TimeControl "900+5"]

1. e4 {[%emt 0:00:00]} c6 {[%emt 0:00:02]} 2. d4 {[%emt 0:00:12]} d5 {[%emt 0:00:01]} 3. exd5 {[%emt 0:00:12]} cxd5 {[%emt 0:00:02]} 4. Nf3 {[%emt 0:00:08]} a6 {[%emt 0:00:04]} 5. c3 {[%emt 0:00:02]} Nc6 {[%emt 0:00:15]} 6. Be2 {[%emt 0:00:19]} Nf6 {[%emt 0:00:07]} 7. O-O {[%emt 0:00:05]} Bf5 {[%emt 0:00:59]} 8. Bf4 {[%emt 0:00:33]} h6 {[%emt 0:00:09]} 9. h3 {[%emt 0:00:17]} e6 {[%emt 0:00:06]} 10. Nbd2 {[%emt 0:00:06]} Bd6 {[%emt 0:00:07]} 11. Ne5 {[%emt 0:01:21]} Qc7 {[%emt 0:00:46]} 12. Ndf3 {[%emt 0:00:06]} Nd7 {[%emt 0:02:07]} 13. Re1 {[%emt 0:02:21]} f6 {[%emt 0:01:10]} 14. Nxd7 {[%emt 0:00:31]} Kxd7 {[%emt 0:02:19]} 15. Bxd6 {[%emt 0:00:15]} Qxd6 {[%emt 0:00:03]} 16. c4 {[%emt 0:01:23]} Rad8 {[%emt 0:02:16]} 17. Qb3 {[%emt 0:02:54]} Kc8 {[%emt 0:00:03]} 18. c5 {[%emt 0:01:19]} Qc7 {[%emt 0:00:39]} 19. Rad1 {[%emt 0:00:10]} Be4 {[%emt 0:00:23]} 20. Qc3 {[%emt 0:01:08]} Qa5 {[%emt 0:00:29]} 21. b4 {[%emt 0:00:41]} Qxb4 {[%emt 0:00:15]} 22. Qe3 {[%emt 0:00:02]} g5 {[%emt 0:00:27]} 23. a3 {[%emt 0:01:32]} Qa4 {[%emt 0:00:27]} 24. Bd3 {[%emt 0:00:33]} f5 {[%emt 0:00:09]} 25. Ne5 {[%emt 0:00:17]} Nxe5 {[%emt 0:00:38]} 26. dxe5 {[%emt 0:00:01]} d4 {[%emt 0:00:02]} 27. Qe2 {[%emt 0:00:35]} Bc6 {[%emt 0:00:19]} 28. Bc4 {[%emt 0:00:08]} Rhe8 {[%emt 0:00:09]} 29. Rb1 {[%emt 0:00:06]} Qxa3 {[%emt 0:00:22]} 30. Rb6 {[%emt 0:00:01]} d3 {[%emt 0:00:27]} 31. Qd2 {[%emt 0:00:10]} Qxc5 {[%emt 0:00:05]} 32. Rb4 {[%emt 0:00:06]} a5 {[%emt 0:00:18]} 33. Rbb1 {[%emt 0:00:01]} Qxc4 {[%emt 0:00:11]} 34. Rec1 {[%emt 0:00:07]} Qd5 {[%emt 0:00:05]} 35. f3 {[%emt 0:00:01]} Re7 {[%emt 0:00:19]} 36. Rc3 {[%emt 0:00:02]} Rc7 {[%emt 0:00:09]} 37. Rbc1 {[%emt 0:00:02]} a4 {[%emt 0:00:04]} 38. Kh1 {[%emt 0:00:10]} Rdd7 {[%emt 0:00:19]} 39. Rc5 {[%emt 0:00:01]} Qd4 {[%emt 0:00:05]} 40. Qa5 {[%emt 0:00:02]} Kd8 {[%emt 0:00:07]} 41. Qa8+ {[%emt 0:00:04]} Rc8 {[%emt 0:00:03]} 42. Qa5+ {[%emt 0:00:03]} Ke8 {[%emt 0:00:03]} 43. Qb6 {[%emt 0:00:05]} d2 {[%emt 0:00:04]} 0-1

[Event "ESP-ch Rapid 2018"]
[Site "Linares"]
[Date "2018.08.19"]
[Round "5"]
[White "Galvez Extremera, Francisco"]
[Black "Guerrero Romero, Antonio"]
[Result "1-0"]
[ECO "B02"]
[WhiteElo "2142"]
[BlackElo "1895"]
[Annotator "NA"]
[PlyCount "39"]
[EventDate "2018.08.19"]
[EventType "team-tourn"]
[EventCountry "ESP"]
[SourceTitle "playchess.com"]
[Source "ChessBase"]
[SourceQuality "1"]
[TimeControl "900+5"]

1. e4 {[%emt 0:00:00]} Nf6 {[%emt 0:00:00]} 2. e5 {[%emt 0:00:01]} Nd5 {[%emt 0:00:00]} 3. Nc3 {[%emt 0:00:02]} c6 {[%emt 0:00:06]} 4. Bc4 {[%emt 0:00:32]} e6 {[%emt 0:00:10]} 5. Qg4 {[%emt 0:01:25]} Nb6 {[%emt 0:00:34]} 6. Bb3 {[%emt 0:00:13]} d5 {[%emt 0:00:14]} 7. exd6 {[%emt 0:00:12]} Qxd6 {[%emt 0:00:03]} 8. Nf3 {[%emt 0:00:31]} N8d7 {[%emt 0:00:01]} 9. Ne4 {[%emt 0:00:39]} Qb4 {[%emt 0:00:04]} 10. c3 {[%emt 0:02:02]} Qa5 {[%emt 0:00:19]} 11. O-O {[%emt 0:03:13]} Nc5 {[%emt 0:02:17]} 12. Nxc5 {[%emt 0:00:13]} Qxc5 {[%emt 0:00:02]} 13. d4 {[%emt 0:00:08]} Qa5 {[%emt 0:00:31]} 14. Ne5 {[%emt 0:00:09]} Nd5 {[%emt 0:01:05]} 15. Re1 {[%emt 0:00:39]} Qd8 {[%emt 0:01:03]} 16. Qh5 {[%emt 0:00:49]} Qc7 {[%emt 0:00:57]} 17. Bd2 {[%emt 0:01:13]} g6 {[%emt 0:01:45]} 18. Qf3 {[%emt 0:00:07]} Bg7 {[%emt 0:00:02]} 19. c4 {[%emt 0:00:22]} Ne7 {[%emt 0:00:14]} 20. Qxf7+ 1-0

[Event "ESP-ch Rapid 2018"]
[Site "Linares"]
[Date "2018.08.19"]
[Round "5"]
[White "Perdomo Araujo, Angel Eduardo"]
[Black "Beltran De Heredia E, Miguel"]
[Result "1-0"]
[ECO "B56"]
[WhiteElo "2100"]
[BlackElo "2229"]
[Annotator "NA"]
[PlyCount "109"]
[EventDate "2018.08.19"]
[EventType "team-tourn"]
[EventCountry "ESP"]
[SourceTitle "playchess.com"]
[Source "ChessBase"]
[SourceQuality "1"]
[TimeControl "900+5"]

1. e4 {[%emt 0:00:00]} c5 {[%emt 0:00:00]} 2. Nf3 {[%emt 0:00:00]} d6 {[%emt 0:00:00]} 3. Nc3 {[%emt 0:00:00]} Nf6 {[%emt 0:00:01]} 4. d4 {[%emt 0:00:00]} cxd4 {[%emt 0:00:01]} 5. Nxd4 {[%emt 0:00:02]} Nc6 {[%emt 0:00:01]} 6. g3 {[%emt 0:00:01]} Bd7 {[%emt 0:00:17]} 7. Bg2 {[%emt 0:00:01]} a6 {[%emt 0:00:20]} 8. O-O {[%emt 0:00:03]} e6 {[%emt 0:00:04]} 9. Re1 {[%emt 0:00:24]} Qc7 {[%emt 0:00:18]} 10. Nd5 {[%emt 0:01:10]} Nxd5 {[%emt 0:02:06]} 11. exd5 {[%emt 0:00:17]} Nxd4 {[%emt 0:00:05]} 12. Qxd4 {[%emt 0:00:02]} e5 {[%emt 0:00:06]} 13. f4 {[%emt 0:00:59]} f6 {[%emt 0:00:34]} 14. fxe5 {[%emt 0:00:21]} fxe5 {[%emt 0:00:03]} 15. c4 {[%emt 0:01:15]} Be7 {[%emt 0:00:04]} 16. Qd3 {[%emt 0:00:12]} Rc8 {[%emt 0:00:44]} 17. b3 {[%emt 0:00:11]} b5 {[%emt 0:01:00]} 18. cxb5 {[%emt 0:00:31]} Bxb5 {[%emt 0:00:02]} 19. Qf5 {[%emt 0:00:02]} g6 {[%emt 0:00:34]} 20. Qg4 {[%emt 0:00:34]} Bd7 {[%emt 0:00:51]} 21. Qe2 {[%emt 0:00:29]} Bb5 {[%emt 0:00:33]} 22. Qg4 {[%emt 0:01:04]} Bd7 {[%emt 0:00:04]} 23. Qe4 {[%emt 0:00:26]} O-O {[%emt 0:00:34]} 24. Be3 {[%emt 0:00:36]} Qa5 {[%emt 0:00:46]} 25. g4 {[%emt 0:01:19]} Bh4 {[%emt 0:00:58]} 26. Rf1 {[%emt 0:00:31]} g5 {[%emt 0:00:39]} 27. a4 {[%emt 0:01:30]} Qc3 {[%emt 0:00:20]} 28. b4 {[%emt 0:00:54]} Kg7 {[%emt 0:01:42]} 29. Rac1 {[%emt 0:00:48]} Qb3 {[%emt 0:00:11]} 30. Rxc8 {[%emt 0:00:23]} Rxf1+ {[%emt 0:00:14]} 31. Bxf1 {[%emt 0:00:24]} Bxc8 {[%emt 0:00:01]} 32. Bd3 {[%emt 0:00:27]} Qd1+ {[%emt 0:00:04]} 33. Kg2 {[%emt 0:00:14]} Kf6 {[%emt 0:01:26]} 34. Qf3+ {[%emt 0:00:40]} Qxf3+ {[%emt 0:00:02]} 35. Kxf3 {[%emt 0:00:01]} h6 {[%emt 0:00:04]} 36. b5 {[%emt 0:00:04]} axb5 {[%emt 0:00:04]} 37. Bxb5 {[%emt 0:00:34]} Be1 {[%emt 0:00:12]} 38. Bb6 {[%emt 0:00:01]} e4+ {[%emt 0:00:09]} 39. Kxe4 {[%emt 0:00:08]} Bxg4 {[%emt 0:00:02]} 40. a5 {[%emt 0:00:06]} Bf5+ {[%emt 0:00:09]} 41. Ke3 {[%emt 0:00:36]} Bxa5 {[%emt 0:00:24]} 42. Bxa5 {[%emt 0:00:02]} Ke5 {[%emt 0:00:29]} 43. Bc6 {[%emt 0:00:02]} Bb1 {[%emt 0:00:07]} 44. Bc3+ {[%emt 0:00:09]} Kf5 {[%emt 0:00:05]} 45. Bb5 {[%emt 0:00:14]} Ba2 {[%emt 0:00:05]} 46. Kd4 {[%emt 0:00:04]} h5 {[%emt 0:00:07]} 47. Bb4 {[%emt 0:00:01]} h4 {[%emt 0:00:04]} 48. Bd7+ {[%emt 0:00:03]} Kg6 {[%emt 0:00:18]} 49. Bxd6 {[%emt 0:00:10]} Bb3 {[%emt 0:00:15]} 50. h3 {[%emt 0:00:14]} Bd1 {[%emt 0:00:01]} 51. Bg4 {[%emt 0:00:05]} Bb3 {[%emt 0:00:06]} 52. Be5 {[%emt 0:00:02]} Kf7 {[%emt 0:00:08]} 53. Kc5 {[%emt 0:00:00]} Ba4 {[%emt 0:00:04]} 54. Kd6 {[%emt 0:00:01]} Bb5 {[%emt 0:00:02]} 55. Kc7 1-0

[Event "ESP-ch Rapid 2018"]
[Site "Linares"]
[Date "2018.08.19"]
[Round "5"]
[White "Collado Barbas, Laura"]
[Black "Calzetta Ruiz, Monica"]
[Result "1-0"]
[ECO "A58"]
[WhiteElo "2095"]
[BlackElo "2302"]
[Annotator "NA"]
[PlyCount "127"]
[EventDate "2018.08.19"]
[EventType "team-tourn"]
[EventCountry "ESP"]
[SourceTitle "playchess.com"]
[Source "ChessBase"]
[SourceQuality "1"]
[TimeControl "900+5"]

1. d4 {[%emt 0:00:00]} Nf6 {[%emt 0:00:00]} 2. c4 {[%emt 0:00:00]} c5 {[%emt 0:00:00]} 3. d5 {[%emt 0:00:01]} b5 {[%emt 0:00:00]} 4. cxb5 {[%emt 0:00:03]} a6 {[%emt 0:00:00]} 5. bxa6 {[%emt 0:00:02]} g6 {[%emt 0:00:03]} 6. Nc3 {[%emt 0:00:02]} Bg7 {[%emt 0:00:06]} 7. Nf3 {[%emt 0:00:16]} O-O {[%emt 0:00:04]} 8. g3 {[%emt 0:00:28]} Qa5 {[%emt 0:00:32]} 9. Bd2 {[%emt 0:00:27]} Bxa6 {[%emt 0:00:24]} 10. Bg2 {[%emt 0:00:37]} d6 {[%emt 0:00:03]} 11. O-O {[%emt 0:00:13]} Nbd7 {[%emt 0:00:03]} 12. Rb1 {[%emt 0:00:04]} Rfb8 {[%emt 0:00:32]} 13. a4 {[%emt 0:01:51]} Qc7 {[%emt 0:00:05]} 14. b3 {[%emt 0:00:08]} Ra7 {[%emt 0:00:48]} 15. Qc2 {[%emt 0:01:07]} Rab7 {[%emt 0:05:48]} 16. Rfc1 {[%emt 0:01:35]} Rb6 {[%emt 0:00:33]} 17. Be1 {[%emt 0:01:53]} Ng4 {[%emt 0:01:30]} 18. h3 {[%emt 0:00:45]} Nge5 {[%emt 0:00:16]} 19. Nd2 {[%emt 0:00:11]} Nf6 {[%emt 0:00:27]} 20. f4 {[%emt 0:00:35]} Ned7 {[%emt 0:00:06]} 21. Bf2 {[%emt 0:01:46]} Rb4 {[%emt 0:00:08]} 22. Na2 {[%emt 0:00:10]} R4b7 {[%emt 0:00:07]} 23. e4 {[%emt 0:00:38]} Qd8 {[%emt 0:00:38]} 24. Re1 {[%emt 0:00:19]} Ne8 {[%emt 0:00:09]} 25. Nf3 {[%emt 0:00:27]} Nc7 {[%emt 0:01:39]} 26. Qd1 {[%emt 0:00:34]} Bc4 {[%emt 0:01:01]} 27. Nd2 {[%emt 0:00:19]} Bd3 {[%emt 0:00:01]} 28. Ra1 {[%emt 0:00:34]} Bxa1 {[%emt 0:00:16]} 29. Qxa1 {[%emt 0:00:01]} Ba6 {[%emt 0:01:18]} 30. e5 {[%emt 0:00:15]} Ne8 {[%emt 0:00:10]} 31. e6 {[%emt 0:00:21]} Ndf6 {[%emt 0:00:06]} 32. g4 {[%emt 0:00:48]} Qa5 {[%emt 0:00:03]} 33. Qd1 {[%emt 0:00:21]} Ng7 {[%emt 0:00:16]} 34. exf7+ {[%emt 0:00:33]} Kxf7 {[%emt 0:00:02]} 35. Nc1 {[%emt 0:00:01]} Qc3 {[%emt 0:00:14]} 36. Nf3 {[%emt 0:00:08]} Rc7 {[%emt 0:00:13]} 37. Re3 {[%emt 0:00:12]} Qa1 {[%emt 0:00:06]} 38. Ng5+ {[%emt 0:00:09]} Kg8 {[%emt 0:00:01]} 39. Qe1 {[%emt 0:00:03]} c4 {[%emt 0:00:04]} 40. b4 {[%emt 0:00:12]} Qxa4 {[%emt 0:00:11]} 41. Rxe7 {[%emt 0:00:07]} Rxe7 {[%emt 0:00:03]} 42. Qxe7 {[%emt 0:00:02]} Qd1+ {[%emt 0:00:04]} 43. Kh2 {[%emt 0:00:02]} Qxc1 {[%emt 0:00:04]} 44. Qxf6 {[%emt 0:00:01]} Rf8 {[%emt 0:00:04]} 45. Qxd6 {[%emt 0:00:02]} Qxf4+ {[%emt 0:00:04]} 46. Qxf4 {[%emt 0:00:13]} Rxf4 {[%emt 0:00:01]} 47. Bc5 {[%emt 0:00:02]} c3 {[%emt 0:00:03]} 48. d6 {[%emt 0:00:01]} Bb5 {[%emt 0:00:06]} 49. Bd5+ {[%emt 0:00:01]} Kh8 {[%emt 0:00:04]} 50. Nf7+ {[%emt 0:00:02]} Rxf7 {[%emt 0:00:03]} 51. Bxf7 {[%emt 0:00:02]} c2 {[%emt 0:00:02]} 52. Be3 {[%emt 0:00:02]} h5 {[%emt 0:00:16]} 53. Bxg6 {[%emt 0:00:07]} hxg4 {[%emt 0:00:05]} 54. hxg4 {[%emt 0:00:01]} Ba4 {[%emt 0:00:06]} 55. Kg2 {[%emt 0:00:07]} Ne6 {[%emt 0:00:02]} 56. Kf2 {[%emt 0:00:08]} Kg7 {[%emt 0:00:01]} 57. Bd3 {[%emt 0:00:04]} Kf6 {[%emt 0:00:13]} 58. b5 {[%emt 0:00:10]} Ke5 {[%emt 0:00:04]} 59. Ke2 {[%emt 0:00:22]} Kxd6 {[%emt 0:00:06]} 60. Kd2 {[%emt 0:00:02]} Nc7 {[%emt 0:00:12]} 61. Bf4+ {[%emt 0:00:05]} Kd7 {[%emt 0:00:02]} 62. Bf5+ {[%emt 0:00:06]} Kd8 {[%emt 0:00:05]} 63. b6 {[%emt 0:00:06]} Nd5 {[%emt 0:00:07]} 64. b7 {[%emt 0:00:05]} 1-0

[Event "ESP-ch Rapid 2018"]
[Site "Linares"]
[Date "2018.08.19"]
[Round "5"]
[White "Razola, Garcia Joaquin"]
[Black "Vinuela Diaz, Saul"]
[Result "0-1"]
[ECO "C47"]
[WhiteElo "2087"]
[BlackElo "2216"]
[Annotator "NA"]
[PlyCount "38"]
[EventDate "2018.08.19"]
[EventType "team-tourn"]
[EventCountry "ESP"]
[SourceTitle "playchess.com"]
[Source "ChessBase"]
[SourceQuality "1"]
[TimeControl "900+5"]

1. e4 {[%emt 0:00:00]} e5 {[%emt 0:00:00]} 2. Nf3 {[%emt 0:00:05]} Nf6 {[%emt 0:00:00]} 3. Nc3 {[%emt 0:00:01]} Nc6 {[%emt 0:00:00]} 4. Bc4 {[%emt 0:00:02]} Nxe4 {[%emt 0:00:21]} 5. Bxf7+ {[%emt 0:00:14]} Kxf7 {[%emt 0:00:02]} 6. Nxe4 {[%emt 0:00:03]} d5 {[%emt 0:00:02]} 7. Neg5+ {[%emt 0:00:19]} Kg8 {[%emt 0:00:02]} 8. Qe2 {[%emt 0:02:16]} h6 {[%emt 0:00:43]} 9. Nh3 {[%emt 0:00:11]} Bg4 {[%emt 0:00:17]} 10. Qe3 {[%emt 0:00:21]} Qf6 {[%emt 0:00:26]} 11. Qb3 {[%emt 0:01:00]} Bxf3 {[%emt 0:00:58]} 12. gxf3 {[%emt 0:00:18]} Rd8 {[%emt 0:00:13]} 13. c3 {[%emt 0:00:32]} Qxf3 {[%emt 0:00:05]} 14. Rg1 {[%emt 0:00:34]} Qxh3 {[%emt 0:00:07]} 15. Qxb7 {[%emt 0:00:10]} Qd7 {[%emt 0:00:29]} 16. d3 {[%emt 0:00:07]} Bc5 {[%emt 0:00:10]} 17. Bd2 {[%emt 0:00:43]} Rb8 {[%emt 0:00:13]} 18. Qa6 {[%emt 0:00:08]} Rxb2 {[%emt 0:00:30]} 19. Ke2 {[%emt 0:02:11]} Rb6 {[%emt 0:00:09]} 0-1

[Event "ESP-ch Rapid 2018"]
[Site "Linares"]
[Date "2018.08.19"]
[Round "5"]
[White "Fernandez Diaz, Ignacio"]
[Black "Salvador Lopez, Daniel"]
[Result "0-1"]
[ECO "B13"]
[WhiteElo "2071"]
[BlackElo "2162"]
[Annotator "NA"]
[PlyCount "46"]
[EventDate "2018.08.19"]
[EventType "team-tourn"]
[EventCountry "ESP"]
[SourceTitle "playchess.com"]
[Source "ChessBase"]
[SourceQuality "1"]
[TimeControl "900+5"]

1. e4 {[%emt 0:00:00]} c6 {[%emt 0:00:00]} 2. d4 {[%emt 0:00:00]} d5 {[%emt 0:00:00]} 3. exd5 {[%emt 0:00:02]} cxd5 {[%emt 0:00:00]} 4. c4 {[%emt 0:00:02]} Nf6 {[%emt 0:00:00]} 5. Nc3 {[%emt 0:00:02]} Nc6 {[%emt 0:00:02]} 6. Nf3 {[%emt 0:00:02]} Bg4 {[%emt 0:00:03]} 7. Bg5 {[%emt 0:00:02]} Bxf3 {[%emt 0:00:54]} 8. gxf3 {[%emt 0:00:24]} dxc4 {[%emt 0:00:16]} 9. d5 {[%emt 0:00:55]} Ne5 {[%emt 0:00:01]} 10. f4 {[%emt 0:00:59]} Nd3+ {[%emt 0:00:17]} 11. Bxd3 {[%emt 0:00:03]} cxd3 {[%emt 0:00:02]} 12. Qxd3 {[%emt 0:00:02]} a6 13. O-O-O {[%emt 0:00:21]} Qd6 {[%emt 0:01:14]} 14. Qc4 {[%emt 0:03:38]} b5 {[%emt 0:02:43]} 15. Qd4 {[%emt 0:01:48]} Rc8 {[%emt 0:00:10]} 16. Bxf6 {[%emt 0:01:42]} gxf6 {[%emt 0:01:53]} 17. Kb1 {[%emt 0:00:15]} Rc4 {[%emt 0:01:33]} 18. Qa7 {[%emt 0:00:48]} Bh6 {[%emt 0:00:58]} 19. Rhg1 {[%emt 0:01:08]} Bxf4 {[%emt 0:01:00]} 20. Qa8+ {[%emt 0:00:17]} Qb8 {[%emt 0:00:05]} 21. Qxa6 {[%emt 0:00:14]} Be5 {[%emt 0:00:51]} 22. Rge1 {[%emt 0:00:44]} O-O {[%emt 0:00:20]} 23. Qxb5 {[%emt 0:01:08]} Bxc3 {[%emt 0:00:26]} 0-1

[Event "ESP-ch Rapid 2018"]
[Site "Linares"]
[Date "2018.08.19"]
[Round "5"]
[White "Bento Iglesias, Pablo"]
[Black "Domingo Nunez, Ruben"]
[Result "0-1"]
[ECO "C00"]
[WhiteElo "2007"]
[BlackElo "2318"]
[Annotator "NA"]
[PlyCount "64"]
[EventDate "2018.08.19"]
[EventType "team-tourn"]
[EventCountry "ESP"]
[SourceTitle "playchess.com"]
[Source "ChessBase"]
[SourceQuality "1"]
[TimeControl "900+5"]

1. e4 {[%emt 0:00:00]} e6 {[%emt 0:00:00]} 2. c4 {[%emt 0:00:00]} c5 {[%emt 0:00:00]} 3. Nc3 {[%emt 0:00:00]} Nc6 {[%emt 0:00:04]} 4. Nf3 {[%emt 0:00:02]} Nd4 {[%emt 0:00:32]} 5. Nxd4 {[%emt 0:01:18]} cxd4 {[%emt 0:00:02]} 6. Ne2 {[%emt 0:00:19]} Qb6 {[%emt 0:00:01]} 7. d3 {[%emt 0:00:38]} a5 {[%emt 0:00:09]} 8. g3 {[%emt 0:01:21]} h5 {[%emt 0:00:08]} 9. h4 {[%emt 0:00:04]} Bb4+ {[%emt 0:00:13]} 10. Bd2 {[%emt 0:00:02]} Nf6 {[%emt 0:00:09]} 11. Bh3 {[%emt 0:00:36]} a4 {[%emt 0:00:07]} 12. Bxb4 {[%emt 0:00:13]} Qxb4+ {[%emt 0:00:02]} 13. Qd2 {[%emt 0:00:04]} Qb6 {[%emt 0:00:08]} 14. e5 {[%emt 0:00:21]} Ng8 {[%emt 0:00:31]} 15. Rc1 {[%emt 0:02:17]} Ra5 {[%emt 0:00:08]} 16. O-O {[%emt 0:01:44]} Ne7 {[%emt 0:01:05]} 17. Nxd4 {[%emt 0:00:24]} Rxe5 {[%emt 0:00:23]} 18. Nf3 {[%emt 0:00:24]} Ra5 {[%emt 0:00:02]} 19. d4 {[%emt 0:00:11]} d6 {[%emt 0:00:47]} 20. Rfd1 {[%emt 0:00:16]} O-O {[%emt 0:00:06]} 21. Ng5 {[%emt 0:00:46]} e5 {[%emt 0:02:56]} 22. Qc2 {[%emt 0:00:23]} g6 {[%emt 0:00:15]} 23. c5 {[%emt 0:00:43]} dxc5 {[%emt 0:00:10]} 24. dxe5 {[%emt 0:00:02]} Bxh3 {[%emt 0:00:38]} 25. Nxh3 {[%emt 0:00:01]} Nf5 {[%emt 0:00:41]} 26. Nf4 {[%emt 0:01:02]} Nd4 {[%emt 0:00:32]} 27. Qc3 {[%emt 0:01:16]} Rb5 {[%emt 0:00:27]} 28. Nd5 {[%emt 0:00:03]} Ne2+ {[%emt 0:00:07]} 29. Kf1 {[%emt 0:00:29]} Nxc3 {[%emt 0:00:02]} 30. Nxb6 {[%emt 0:00:02]} Nxd1 {[%emt 0:00:01]} 31. Nd7 {[%emt 0:00:02]} Nxb2 {[%emt 0:00:13]} 32. Nxf8 {[%emt 0:00:02]} Kxf8 {[%emt 0:00:01]} 0-1

[Event "ESP-ch Rapid 2018"]
[Site "Linares"]
[Date "2018.08.19"]
[Round "5"]
[White "Blazquez Gomez, Miguel"]
[Black "Garcia Romero, Benjamin Abel"]
[Result "0-1"]
[ECO "B20"]
[WhiteElo "1998"]
[BlackElo "2230"]
[Annotator "NA"]
[PlyCount "108"]
[EventDate "2018.08.19"]
[EventType "team-tourn"]
[EventCountry "ESP"]
[SourceTitle "playchess.com"]
[Source "ChessBase"]
[SourceQuality "1"]
[TimeControl "900+5"]

1. e4 {[%emt 0:00:00]} c5 {[%emt 0:00:03]} 2. a3 {[%emt 0:00:02]} g6 {[%emt 0:00:11]} 3. b4 {[%emt 0:00:02]} Bg7 {[%emt 0:00:01]} 4. Nc3 {[%emt 0:00:02]} b6 {[%emt 0:00:33]} 5. bxc5 {[%emt 0:00:07]} bxc5 {[%emt 0:00:01]} 6. Rb1 {[%emt 0:00:18]} Nc6 {[%emt 0:00:12]} 7. Nf3 {[%emt 0:00:15]} Nf6 {[%emt 0:01:06]} 8. Bb5 {[%emt 0:01:54]} O-O {[%emt 0:00:08]} 9. O-O {[%emt 0:00:17]} Nd4 {[%emt 0:00:35]} 10. Bc4 {[%emt 0:00:40]} d6 {[%emt 0:01:52]} 11. h3 {[%emt 0:02:22]} Bd7 {[%emt 0:02:29]} 12. Re1 {[%emt 0:01:01]} Nh5 {[%emt 0:00:04]} 13. Nxd4 {[%emt 0:01:07]} cxd4 {[%emt 0:00:50]} 14. Ne2 {[%emt 0:00:30]} Rc8 {[%emt 0:00:23]} 15. d3 {[%emt 0:00:12]} e5 {[%emt 0:00:39]} 16. Bd2 {[%emt 0:00:51]} Kh8 {[%emt 0:01:22]} 17. Rb7 {[%emt 0:00:12]} Rxc4 {[%emt 0:02:07]} 18. dxc4 {[%emt 0:00:03]} Bc6 {[%emt 0:00:01]} 19. Rb3 {[%emt 0:01:53]} Qa8 {[%emt 0:00:27]} 20. f3 {[%emt 0:00:42]} Bf6 {[%emt 0:00:05]} 21. g4 {[%emt 0:00:12]} Ng7 {[%emt 0:00:30]} 22. g5 {[%emt 0:00:26]} Bd8 {[%emt 0:00:01]} 23. Qb1 {[%emt 0:00:12]} Bb6 {[%emt 0:00:15]} 24. Ng3 {[%emt 0:00:45]} Ne6 {[%emt 0:00:18]} 25. Kh2 {[%emt 0:00:25]} Qc8 {[%emt 0:00:26]} 26. Rxb6 {[%emt 0:00:21]} axb6 {[%emt 0:00:08]} 27. Qxb6 {[%emt 0:00:02]} Qd7 {[%emt 0:00:34]} 28. Rb1 {[%emt 0:00:54]} Rc8 {[%emt 0:00:10]} 29. h4 {[%emt 0:00:04]} h5 {[%emt 0:00:36]} 30. gxh6 {[%emt 0:00:52]} Qe7 {[%emt 0:00:01]} 31. Bg5 {[%emt 0:00:15]} Nxg5 {[%emt 0:00:01]} 32. hxg5 {[%emt 0:00:01]} Qxg5 {[%emt 0:00:01]} 33. Qb4 {[%emt 0:00:10]} Bd7 {[%emt 0:00:34]} 34. Kg2 {[%emt 0:00:10]} f5 {[%emt 0:00:18]} 35. exf5 {[%emt 0:00:14]} gxf5 {[%emt 0:00:04]} 36. Qxd6 {[%emt 0:00:06]} f4 {[%emt 0:00:01]} 37. Kf1 {[%emt 0:00:05]} Bh3+ {[%emt 0:00:03]} 38. Ke2 {[%emt 0:00:01]} fxg3 {[%emt 0:00:03]} 39. Rb3 {[%emt 0:00:11]} g2 {[%emt 0:00:10]} 40. f4 {[%emt 0:00:10]} Bg4+ {[%emt 0:00:16]} 41. Kf2 {[%emt 0:00:06]} Qxf4+ {[%emt 0:00:03]} 42. Kxg2 {[%emt 0:00:02]} Bf3+ {[%emt 0:00:12]} 43. Rxf3 {[%emt 0:00:01]} Rg8+ {[%emt 0:00:01]} 44. Kf2 {[%emt 0:00:01]} Qd2+ {[%emt 0:00:00]} 45. Kf1 {[%emt 0:00:05]} Qd1+ {[%emt 0:00:02]} 46. Kf2 {[%emt 0:00:01]} Qg1+ {[%emt 0:00:01]} 47. Ke2 {[%emt 0:00:00]} Rg2+ {[%emt 0:00:00]} 48. Kd3 {[%emt 0:00:03]} Qd1+ {[%emt 0:00:02]} 49. Ke4 {[%emt 0:00:01]} Qe2+ {[%emt 0:00:01]} 50. Kd5 {[%emt 0:00:01]} Qxf3+ {[%emt 0:00:01]} 51. Kc5 {[%emt 0:00:01]} Qf5 {[%emt 0:00:11]} 52. Qb8+ {[%emt 0:00:03]} Rg8 {[%emt 0:00:05]} 53. Qd6 {[%emt 0:00:10]} Qc8+ {[%emt 0:00:05]} 54. Kd5 {[%emt 0:00:05]} Rd8 {[%emt 0:00:01]} 0-1